fUST/lending_fUST_20251231
["ID","MTS","AMOUNT","RATE_DAILY","PERIOD"]
[400148148,1767154242755,-151.0,0.00014403,2]
[400148150,1767154242765,-500.0,0.00014403,2]
[400148152,1767154242774,-151.0,0.00014403,2]
[400148154,1767154242783,-500.0,0.00014403,2]
[400148156,1767154242793,-151.0,0.00014403,2]
[400148158,1767154242802,-2487.15318209,0.00014403,2]
[400148160,1767154242812,-500.0,0.00014403,2]
[400148162,1767154242821,-151.0,0.00014403,2]
[400148164,1767154242831,-500.0,0.00014403,2]
[400148177,1767154242938,-151.0,0.00014403,2]
[400148179,1767154242960,-250.0,0.00014403,2]
[400148181,1767154242969,-250.0,0.00014403,2]
[400148183,1767154242978,-151.0,0.00014403,2]
[400148185,1767154242987,-250.0,0.00014403,2]
[400148187,1767154242996,-151.0,0.00014403,2]
[400148189,1767154243006,-151.0,0.00014403,2]
[400148191,1767154243015,-250.0,0.00014403,2]
[400148193,1767154243024,-151.0,0.00014403,2]
[400148195,1767154243033,-250.0,0.00014403,2]
[400148197,1767154243042,-250.0,0.00014403,2]
[400148199,1767154243051,-151.0,0.00014403,2]
[400148201,1767154243069,-250.0,0.00014403,2]
[400148203,1767154243078,-151.0,0.00014403,2]
[400148205,1767154243087,-250.0,0.00014403,2]
[400148207,1767154243096,-151.0,0.00014403,2]
[400148209,1767154243105,-250.0,0.00014403,2]
[400148211,1767154243114,-264.15323111,0.00014403,2]
[400148213,1767154243123,-257.39953178,0.00014403,2]
[400148215,1767154243132,-1000.0,0.00014403,2]
[400148217,1767154243141,-1182.62181526,0.0001443,2]
[400148218,1767154243151,-720.0,0.00014761,2]
[400148220,1767154243163,-900.0,0.00014768,2]
[400148222,1767154243172,-1500.0,0.00014795,2]
[400148224,1767154243181,-1500.0,0.00014795,2]
[400148226,1767154243190,-463.63501052,0.00014795,2]
[400148228,1767154243201,-1500.0,0.00014795,2]
[400148230,1767154243210,-1500.0,0.00014795,2]
[400148232,1767154243220,-690.10820632,0.00014795,2]
[400148234,1767154243229,-1425.73894344,0.00014795,2]
[400148236,1767154243240,-1068.53710429,0.00014795,2]
[400148238,1767154243249,-1500.0,0.00014795,2]
[400148240,1767154243258,-1500.0,0.00014795,2]
[400148242,1767154243267,-1500.0,0.00014795,2]
[400148244,1767154243276,-1500.0,0.00014795,2]
[400148246,1767154243286,-1500.0,0.00014795,2]
[400148248,1767154243294,-1500.0,0.00014795,2]
[400148250,1767154243304,-1500.0,0.00014795,2]
[400148252,1767154243314,-662.55448324,0.00014795,2]
[400148254,1767154243323,-524.36073826,0.00014795,2]
[400148256,1767154243333,-1011.86637987,0.00014795,2]
[400148258,1767154243343,-1500.0,0.00014795,2]
[400148260,1767154243352,-1500.0,0.00014795,2]
[400148262,1767154243361,-1500.0,0.00014795,2]
[400148264,1767154243370,-614.96936602,0.00014795,2]
[400148266,1767154243380,-1500.0,0.00014795,2]
[400148268,1767154243389,-1500.0,0.00014795,2]
[400148270,1767154243399,-1078.13053233,0.00014795,2]
[400148272,1767154243408,-1500.0,0.00014795,2]
[400148274,1767154243417,-1500.0,0.00014795,2]
[400148276,1767154243429,-1500.0,0.00014795,2]
[400148278,1767154243438,-1500.0,0.00014795,2]
[400148280,1767154243448,-1371.80562161,0.00014795,2]
[400148282,1767154243458,-1500.0,0.00014795,2]
[400148284,1767154243467,-1500.0,0.00014795,2]
[400148286,1767154243476,-1500.0,0.00014795,2]
[400148288,1767154243486,-1500.0,0.00014795,2]
[400148290,1767154243495,-1500.0,0.00014795,2]
[400148292,1767154243504,-1500.0,0.00014795,2]
[400148294,1767154243515,-1500.0,0.00014795,2]
[400148296,1767154243525,-1500.0,0.00014795,2]
[400148298,1767154243534,-1500.0,0.00014795,2]
[400148300,1767154243544,-1136.51090941,0.00014795,2]
[400148302,1767154243553,-1500.0,0.00014795,2]
[400148304,1767154243562,-1500.0,0.00014795,2]
[400148306,1767154243572,-1633.65989049,0.00014795,2]
[400148308,1767154243788,-1500.0,0.00014795,2]
[400148310,1767154243798,-1500.0,0.00014795,2]
[400148312,1767154243807,-1500.0,0.00014795,2]
[400148314,1767154243816,-1500.0,0.00014795,2]
[400148316,1767154243826,-1516.82099752,0.00014795,2]
[400148318,1767154243836,-1500.0,0.00014795,2]
[400148320,1767154243845,-1500.0,0.00014795,2]
[400148321,1767154243854,-1605.24677987,0.00014795,2]
[400148323,1767154243863,-1500.0,0.00014795,2]
[400148325,1767154243873,-342.96834915,0.00014795,2]
[400148327,1767154243882,-1500.0,0.00014795,2]
[400148329,1767154243892,-1142.5109954,0.00014795,2]
[400148330,1767154243901,-1500.0,0.00014795,2]
[400148331,1767154243911,-1500.0,0.00014795,2]
[400148332,1767154243920,-1500.0,0.00014795,2]
[400148333,1767154243931,-1500.0,0.00014795,2]
[400148334,1767154243941,-1500.0,0.00014795,2]
[400148335,1767154243952,-1500.0,0.00014795,2]
[400148336,1767154243961,-1500.0,0.00014795,2]
[400148337,1767154243970,-1035.5590815,0.00014916,2]
[400148338,1767154243979,-2113.45090759,0.00014916,2]
[400148339,1767154243988,-534.26412326,0.00014916,2]
[400148340,1767154243998,-239.12450639,0.00014916,2]
[400148341,1767154244007,-1818.87701711,0.00014916,2]
[400148342,1767154244017,-2000.0,0.00014916,2]
[400148343,1767154244027,-2000.0,0.00014916,2]
[400148344,1767154244036,-685.55855892,0.00014916,2]
[400148345,1767154244046,-220.45191793,0.00014916,2]
[400148346,1767154244055,-2000.0,0.00014916,2]
[400148347,1767154244065,-2000.0,0.00014916,2]
[400148348,1767154244075,-2000.0,0.00014916,2]
[400148349,1767154244084,-2000.0,0.00014916,2]
[400148350,1767154244094,-2000.0,0.00014916,2]
[400148351,1767154244102,-2000.0,0.00014916,2]
[400148352,1767154244112,-465.35115233,0.00014916,2]
[400148353,1767154244121,-2000.0,0.00014916,2]
[400148354,1767154244130,-2000.0,0.00014916,2]
[400148355,1767154244140,-2000.0,0.00014916,2]
[400148356,1767154244149,-1431.23584985,0.00014916,2]
[400148357,1767154244162,-2000.0,0.00014916,2]
[400148358,1767154244171,-2000.0,0.00014916,2]
[400148359,1767154244180,-2000.0,0.00014916,2]
[400148360,1767154244189,-2000.0,0.00014916,2]
[400148361,1767154244200,-2000.0,0.00014916,2]
[400148362,1767154244209,-2000.0,0.00014916,2]
[400148363,1767154244219,-1079.52271368,0.00014916,2]
[400148364,1767154244229,-424.40432946,0.00014916,2]
[400148365,1767154244239,-2000.0,0.00014916,2]
[400148366,1767154244247,-151.0,0.00014951,2]
[400148367,1767154244256,-533.88981491,0.00014951,2]
[400148368,1767154244267,-2579.17784983,0.00014951,2]
[400148369,1767154244276,-100000.0,0.00015028,2]
[400148370,1767154244285,-803.5950816,0.00015068,2]
[400148371,1767154244296,-2896.55,0.00015088,2]
[400148372,1767154244305,-11348.91798859,0.0001519,2]
[400148373,1767154244315,-1200.0,0.00015316,2]
[400148374,1767154244324,-157.67215419,0.00015342,2]
[400148375,1767154244334,-402.01463508,0.00015342,2]
[400148376,1767154244344,-2000.0,0.00015342,2]
[400148377,1767154244355,-2000.0,0.00015342,2]
[400148378,1767154244364,-1009.61748521,0.00015342,2]
[400148379,1767154244373,-288.21762562,0.00015342,2]
[400148380,1767154244383,-2000.0,0.00015342,2]
[400148381,1767154244392,-2000.0,0.00015342,2]
[400148382,1767154244402,-2000.0,0.00015342,2]
[400148383,1767154244412,-1165.86238698,0.00015342,2]
[400148384,1767154244421,-2000.0,0.00015342,2]
[400148385,1767154244431,-2000.0,0.00015342,2]
[400148386,1767154244440,-2000.0,0.00015342,2]
[400148387,1767154244449,-2000.0,0.00015342,2]
[400148388,1767154244458,-909.51288327,0.00015342,2]
[400148389,1767154244468,-2000.0,0.00015342,2]
[400148390,1767154244477,-915.94669576,0.00015342,2]
[400148391,1767154244487,-922.85192268,0.00015342,2]
[400148392,1767154244497,-2000.0,0.00015342,2]
[400148393,1767154244506,-1655.66749295,0.00015342,2]
[400148394,1767154244515,-503.1340869,0.00015342,2]
[400148395,1767154244525,-682.49603851,0.00015342,2]
[400148396,1767154244534,-2000.0,0.00015342,2]
[400148397,1767154244543,-2000.0,0.00015342,2]
[400148398,1767154244552,-1636.69571136,0.00015342,2]
[400148399,1767154244562,-2018.84773542,0.00015342,2]
[400148400,1767154244572,-2000.0,0.00015342,2]
[400148401,1767154244581,-2000.0,0.00015342,2]
[400148402,1767154244591,-2000.0,0.00015342,2]
[400148403,1767154244600,-2000.0,0.00015342,2]
[400148404,1767154244609,-2000.0,0.00015342,2]
[400148405,1767154244618,-2000.0,0.00015342,2]
[400148406,1767154244627,-1510.33134929,0.00015342,2]
[400148407,1767154244637,-2000.0,0.00015342,2]
[400148408,1767154244647,-1504.98936626,0.00015342,2]
[400148409,1767154244656,-2000.0,0.00015342,2]
[400148410,1767154244665,-1504.79599952,0.00015342,2]
[400148411,1767154244675,-1104.13585388,0.00015342,2]
[400148412,1767154244685,-1793.14415046,0.00015342,2]
[400148413,1767154244694,-2000.0,0.00015342,2]
[400148414,1767154244704,-2000.0,0.00015342,2]
[400148415,1767154244714,-2000.0,0.00015342,2]
[400148416,1767154244723,-1207.59767903,0.00015342,2]
[400148417,1767154244733,-2005.94817452,0.00015342,2]
[400148418,1767154244742,-1003.48898302,0.00015342,2]
[400148419,1767154244752,-2000.0,0.00015342,2]
[400148420,1767154244761,-623.775336,0.00015464,2]
[400148421,1767154244770,-623.775336,0.00015464,2]
[400148422,1767154244779,-623.775336,0.00015464,2]
[400148423,1767154244789,-623.775336,0.00015464,2]
[400148424,1767154244798,-194.747586,0.00015464,2]
[400148425,1767154244807,-194.747586,0.00015464,2]
[400148426,1767154244817,-194.747586,0.00015464,2]
[400148427,1767154244826,-194.747586,0.00015464,2]
[400148428,1767154244836,-151.0,0.00015464,2]
[400148429,1767154244845,-151.0,0.00015464,2]
[400148430,1767154244855,-2500.0,0.00015464,2]
[400148431,1767154244865,-1770.44343412,0.00015464,2]
[400148432,1767154244874,-478.35295088,0.00015464,2]
[400148433,1767154244883,-2500.0,0.00015464,2]
[400148434,1767154244893,-2500.0,0.00015464,2]
[400148435,1767154244903,-2500.0,0.00015464,2]
[400148436,1767154244912,-2500.0,0.00015464,2]
[400148438,1767154244921,-2500.0,0.00015464,2]
[400148439,1767154244931,-1849.32071924,0.00015464,2]
[400148440,1767154244940,-2500.0,0.00015464,2]
[400148441,1767154244950,-2500.0,0.00015464,2]
[400148442,1767154244959,-2500.0,0.00015464,2]
[400148443,1767154244968,-2500.0,0.00015464,2]
[400148444,1767154244978,-2500.0,0.00015464,2]
[400148445,1767154244987,-2500.0,0.00015464,2]
[400148446,1767154244997,-2500.0,0.00015464,2]
[400148447,1767154245006,-2500.0,0.00015464,2]
[400148448,1767154245016,-2500.0,0.00015464,2]
[400148449,1767154245026,-151.68521952,0.00015499,2]
[400148450,1767154245035,-553.64373807,0.00015499,2]
[400148451,1767154245045,-2674.60743027,0.00015499,2]
[400148452,1767154245055,-372.15197437,0.00015591,2]
[400148453,1767154245065,-151.0,0.000156,2]
[400148454,1767154245074,-240.26704818,0.00015613,2]
[400148455,1767154245084,-250.0,0.00015618,2]
[400148456,1767154245093,-823.0,0.00015646,2]
[400148457,1767154245103,-3292.0,0.00015732,2]
[400148458,1767154245112,-151.0,0.000158,2]
[400148459,1767154245121,-1500.0,0.00015864,2]
[400148460,1767154245131,-550.74198848,0.0001589,2]
[400148461,1767154245140,-418.31768676,0.0001589,2]
[400148462,1767154245149,-903.04207638,0.0001589,2]
[400148463,1767154245163,-537.58100831,0.0001589,2]
[400148464,1767154245173,-2500.0,0.0001589,2]
[400148465,1767154245182,-1005.31532944,0.0001589,2]
[400148466,1767154245191,-2005.23629678,0.0001589,2]
[400148467,1767154245201,-1534.26049156,0.0001589,2]
[400148468,1767154245210,-1507.68801883,0.0001589,2]
[400148469,1767154245220,-574.09930708,0.0001589,2]
[400148470,1767154245231,-651.60877791,0.0001589,2]
[400148471,1767154245240,-1508.82384523,0.0001589,2]
[400148472,1767154245249,-504.59975832,0.0001589,2]
[400148473,1767154245258,-1159.95613973,0.0001589,2]
[400148474,1767154245267,-1498.45804599,0.0001589,2]
[400148475,1767154245276,-480.71714518,0.0001589,2]
[400148476,1767154245285,-2500.0,0.0001589,2]
[400148477,1767154245294,-299.59970903,0.0001589,2]
[400148478,1767154245304,-503.64865922,0.0001589,2]
[400148479,1767154245314,-386.3706875,0.0001589,2]
[400148480,1767154245323,-379.37902934,0.0001589,2]
[400148481,1767154245332,-1002.53547853,0.0001589,2]
[400148482,1767154245342,-2000.65529052,0.0001589,2]
[400148483,1767154245351,-942.31574179,0.0001589,2]
[400148484,1767154245360,-2500.0,0.0001589,2]
[400148485,1767154245369,-3000.0,0.00016012,2]
[400148486,1767154245379,-3000.0,0.00016012,2]
[400148487,1767154245388,-3000.0,0.00016012,2]
[400148488,1767154245397,-260.55819049,0.00016012,2]
[400148489,1767154245407,-2008.62893178,0.00016012,2]
[400148490,1767154245416,-3000.0,0.00016012,2]
[400148491,1767154245426,-3000.0,0.00016012,2]
[400148492,1767154245435,-3000.0,0.00016012,2]
[400148493,1767154245444,-869.66779668,0.00016012,2]
[400148494,1767154245453,-695.74962431,0.00016012,2]
[400148495,1767154245462,-3000.0,0.00016012,2]
[400148497,1767154245472,-3000.0,0.00016012,2]
[400148499,1767154245481,-3000.0,0.00016012,2]
[400148500,1767154245491,-3000.0,0.00016012,2]
[400148501,1767154245500,-3000.0,0.00016012,2]
[400148502,1767154245510,-574.12855637,0.00016047,2]
[400148503,1767154245519,-2773.56790519,0.00016047,2]
[400148504,1767154245528,-151.0,0.000161,2]
[400148505,1767154245538,-3862.07,0.00016236,2]
[400148506,1767154245547,-864.0,0.00016237,2]
[400148507,1767154245557,-1808.97595015,0.00016412,2]
[400148508,1767154245566,-500.0,0.00016438,2]
[400148509,1767154245575,-495.78642928,0.00016438,2]
[400148510,1767154245585,-3000.0,0.00016438,2]
[400148511,1767154245594,-1035.35417784,0.00016438,2]
[400148512,1767154245603,-3000.0,0.00016438,2]
[400148513,1767154245613,-200.0,0.00016473,2]
[400148514,1767154245622,-3500.0,0.0001656,2]
[400148515,1767154245631,-3500.0,0.0001656,2]
[400148516,1767154245640,-3500.0,0.0001656,2]
[400148517,1767154245649,-3500.0,0.0001656,2]
[400148518,1767154245658,-360.16624078,0.0001656,2]
[400148519,1767154245667,-3005.99987486,0.0001656,2]
[400148521,1767154245676,-3500.0,0.0001656,2]
[400148522,1767154245684,-3500.0,0.0001656,2]
[400148523,1767154245693,-3500.0,0.0001656,2]
[400148524,1767154245703,-3500.0,0.0001656,2]
[400148525,1767154245712,-3500.0,0.0001656,2]
[400148526,1767154245721,-595.37131296,0.00016595,2]
[400148527,1767154245730,-151.0,0.000166,2]
[400148528,1767154245739,-999.0,0.00016607,2]
[400148530,1767154245748,-1105.6695978,0.00016761,2]
[400148532,1767154245757,-364.0,0.00016892,2]
[400148533,1767154245766,-308.2133853,0.00016986,2]
[400148534,1767154245776,-3500.0,0.00016986,2]
[400148535,1767154245785,-422.0,0.00017081,2]
[400148536,1767154245794,-1858.98056114,0.00017108,2]
[400148537,1767154245803,-2347.53001016,0.00017108,2]
[400148538,1767154245812,-4000.0,0.00017108,2]
[400148539,1767154245821,-1576.89571839,0.00017108,2]
[400148540,1767154245831,-4000.0,0.00017108,2]
[400148542,1767154245839,-4000.0,0.00017108,2]
[400148544,1767154245849,-3526.72831681,0.00017108,2]
[400148546,1767154245858,-1170.57654237,0.00017108,2]
[400148547,1767154245867,-4000.0,0.00017108,2]
[400148549,1767154245877,-800.0,0.00017121,2]
[400148551,1767154245886,-617.40005154,0.00017143,2]
[400148553,1767154245896,-800.0,0.0001715,2]
[400148555,1767154245905,-1152.0,0.00017179,2]
[400148557,1767154245915,-2479.43651336,0.00017247,2]
[400148559,1767154245924,-809.12501589,0.00017256,2]
[400148561,1767154245933,-300.0,0.00017257,2]
[400148563,1767154245942,-3741.0,0.00017306,2]
[400148565,1767154245951,-800.0,0.00017333,2]
[400148567,1767154245960,-4827.59,0.00017396,2]
[400148569,1767154245969,-30848.22351747,0.000174,3]
[400148571,1767154245978,-346.0,0.000174,2]
[400148573,1767154245988,-163.36530169,0.000174,2]
[400148575,1767154245997,-377.19488252,0.000174,2]
[400148577,1767154246007,-154.8014687,0.000174,2]
[400148578,1767154246016,-1182.62181526,0.0001744,2]
[400148592,1767154246145,-151.0,0.000175,2]
[400148594,1767154246155,-4000.0,0.00017534,2]
[400148595,1767154246166,-421.40738274,0.00017591,2]
[400148597,1767154246175,-584.778,0.00017656,2]
[400148599,1767154246184,-184.00470644,0.00017656,2]
[400148600,1767154246193,-2422.38060374,0.00017656,2]
[400148601,1767154246205,-1017.91360693,0.00017656,2]
[400148602,1767154246214,-4500.0,0.00017656,2]
[400148603,1767154246223,-3957.95662081,0.00017656,2]
[400148605,1767154246234,-640.24385345,0.00017691,2]
[400148607,1767154246243,-623.775336,0.000178,2]
[400148609,1767154246252,-623.775336,0.000178,2]
[400148610,1767154246262,-623.775336,0.000178,2]
[400148611,1767154246287,-623.775336,0.000178,2]
[400148613,1767154246296,-194.747586,0.000178,2]
[400148615,1767154246306,-194.747586,0.000178,2]
[400148617,1767154246315,-194.747586,0.000178,2]
[400148618,1767154246324,-194.747586,0.000178,2]
[400148620,1767154246334,-9826.43025794,0.000178,3]
[400148623,1767154246449,-1072.42239394,0.000178,3]
[400148624,1767154246618,-670.70315115,0.00014403,2]
[400148625,1767154246628,-1656.0468497,0.000178,3]
[400148626,1767154246776,-0.01251997,0.000178,3]
[400148627,1767154247175,-207.03,0.00012329,2]
[400148628,1767154247184,-45.08978958,0.00013698,2]
[400148629,1767154247196,-454.91021042,0.00013698,2]
[400148630,1767154247206,-317.07979179,0.00014695,2]
[400148631,1767154247239,-295.13886484,0.00014695,2]
[400148632,1767154247250,-295.22756945,0.00014695,2]
[400148633,1767154247259,-1035.94550055,0.000178,3]
[400148634,1767154247271,-38510.82881956,0.000178,3]
[400148635,1767154247280,-151.0,0.000178,2]
[400148636,1767154247289,-151.0,0.000178,2]
[400148637,1767154247299,-278.6904084,0.00017842,2]
[400148638,1767154247308,-1000.0,0.00017861,2]
[400148639,1767154247318,-4500.0,0.00018082,2]
[400148640,1767154247327,-500.0,0.00018235,2]
[400148641,1767154247336,-2027.31906475,0.00018239,2]
[400148642,1767154247347,-663.93287602,0.00018239,2]
[400148643,1767154247356,-4314.55336968,0.00018245,2]
[400148644,1767154247365,-151.0,0.000183,2]
[400148645,1767154247375,-17367.21,0.000185,3]
[400148646,1767154247384,-5793.1,0.00018555,2]
[400148647,1767154247393,-5000.0,0.0001863,2]
[400148648,1767154247403,-688.49839244,0.00018787,2]
[400148649,1767154247413,-50330.29268288,0.000188,5]
[400148697,1767154315516,10000.01,0.00011721,2]
[400148698,1767154315543,10000.01,0.00011721,2]
[400148699,1767154315571,10000.01,0.00011721,2]
[400148700,1767154315597,10000.01,0.00011721,2]
[400148701,1767154315625,10000.01,0.00011721,2]
[400148702,1767154315650,10000.01,0.00011721,2]
[400148703,1767154315674,10000.01,0.00011721,2]
[400148704,1767154315699,10000.01,0.00011721,2]
[400148705,1767154315724,10000.01,0.00011721,2]
[400148706,1767154315749,10000.01,0.00011721,2]
[400148707,1767154323311,-300.0,0.0001172,2]
[400148708,1767154326635,-9690.42324035,0.00011721,2]
[400148709,1767154326764,-10000.01,0.00011721,2]
[400148710,1767154326865,-10000.01,0.00011721,2]
[400148711,1767154327226,-10000.01,0.00011721,2]
[400148712,1767154327426,-10000.01,0.00011721,2]
[400148713,1767154327648,-10000.01,0.00011721,2]
[400148714,1767154328627,-10000.01,0.00011721,2]
[400148715,1767154328759,-10000.01,0.00011721,2]
[400148716,1767154329330,-10000.01,0.00011721,2]
[400148717,1767154329445,-10000.01,0.00011721,2]
[400148718,1767154344609,-10000.01,0.00011721,2]
[400148719,1767154344711,-2500.02934156,0.00011721,2]
[400148720,1767154344738,-4999.95131688,0.00011721,2]
[400148721,1767154345761,3520.91,0.00011604,2]
[400148723,1767154353657,-300.0,0.00011954,2]
[400148724,1767154353689,-300.0,0.00011954,2]
[400148725,1767154353721,-300.0,0.00011954,2]
[400148726,1767154353752,-300.0,0.00011954,2]
[400148727,1767154353784,-300.0,0.00011954,2]
[400148728,1767154353816,-300.0,0.00011954,2]
[400148729,1767154353849,-300.0,0.00011954,2]
[400148730,1767154353881,-300.0,0.00011954,2]
[400148731,1767154353913,-300.0,0.00011954,2]
[400148732,1767154353947,-300.0,0.00011954,2]
[400148733,1767154353980,-300.0,0.00011954,2]
[400148734,1767154354012,-300.0,0.00011954,2]
[400148735,1767154354045,-300.0,0.00011954,2]
[400148736,1767154354078,-300.0,0.00011954,2]
[400148737,1767154354108,-300.0,0.00011954,2]
[400148738,1767154354225,1000.01,0.00011721,2]
[400148739,1767154354251,3999.99,0.00011721,2]
[400148777,1767154443587,207.35873939,0.00011676,2]
[400148778,1767154466443,9792.65126061,0.00011721,2]
[400148779,1767154466469,10000.01,0.00011721,2]
[400148780,1767154466494,10000.01,0.00011721,2]
[400148781,1767154466520,10000.01,0.00011721,2]
[400148782,1767154466545,10000.01,0.00011721,2]
[400148783,1767154466570,10000.01,0.00011721,2]
[400148784,1767154466604,10000.01,0.00011721,2]
[400148785,1767154466630,10000.01,0.00011721,2]
[400148786,1767154466656,10000.01,0.00011721,2]
[400148787,1767154466680,10000.01,0.00011721,2]
[400148788,1767154473100,-500.0,0.0001172,2]
[400148789,1767154473128,-392.24776683,0.0001172,2]
[400148790,1767154473156,-500.0,0.0001172,2]
[400148791,1767154473185,-500.0,0.0001172,2]
[400148792,1767154473214,-500.0,0.0001172,2]
[400148793,1767154473242,-500.0,0.0001172,2]
[400148794,1767154473274,-500.0,0.0001172,2]
[400148795,1767154473304,-500.0,0.0001172,2]
[400148796,1767154473334,-500.0,0.0001172,2]
[400148797,1767154473363,-500.0,0.0001172,2]
[400148798,1767154473500,-500.0,0.0001172,2]
[400148799,1767154473530,-500.0,0.0001172,2]
[400148800,1767154473560,-377.32155172,0.0001172,2]
[400148801,1767154473590,-500.0,0.0001172,2]
[400148802,1767154473620,-500.0,0.0001172,2]
[400148803,1767154473650,-500.0,0.0001172,2]
[400148804,1767154473679,-500.0,0.0001172,2]
[400148805,1767154473707,-500.0,0.0001172,2]
[400148806,1767154473736,-500.0,0.0001172,2]
[400148807,1767154473765,-500.0,0.0001172,2]
[400148808,1767154473908,-500.0,0.0001172,2]
[400148809,1767154473937,-500.0,0.0001172,2]
[400148810,1767154473966,-500.0,0.0001172,2]
[400148811,1767154473996,-500.0,0.0001172,2]
[400148812,1767154474025,-500.0,0.0001172,2]
[400148813,1767154474056,-500.0,0.0001172,2]
[400148814,1767154474086,-500.0,0.0001172,2]
[400148815,1767154474115,-500.0,0.0001172,2]
[400148816,1767154474143,-500.0,0.0001172,2]
[400148817,1767154474172,-500.0,0.0001172,2]
[400148818,1767154474252,-500.0,0.0001172,2]
[400148819,1767154474282,-500.0,0.0001172,2]
[400148820,1767154474314,-450.0,0.0001172,2]
[400148821,1767154474345,-500.0,0.0001172,2]
[400148822,1767154474375,-500.0,0.0001172,2]
[400148823,1767154474406,-500.0,0.0001172,2]
[400148824,1767154474438,-500.0,0.0001172,2]
[400148825,1767154474467,-500.0,0.0001172,2]
[400148826,1767154474497,-500.0,0.0001172,2]
[400148827,1767154474528,-500.0,0.0001172,2]
[400148828,1767154474671,-500.0,0.0001172,2]
[400148829,1767154474701,-500.0,0.0001172,2]
[400148830,1767154474865,-500.0,0.0001172,2]
[400148831,1767154474896,-500.0,0.0001172,2]
[400148832,1767154474928,-219.27255661,0.0001172,2]
[400148833,1767154474959,-500.0,0.0001172,2]
[400148834,1767154474991,-500.0,0.0001172,2]
[400148835,1767154475023,-500.0,0.0001172,2]
[400148836,1767154475054,-500.0,0.0001172,2]
[400148837,1767154475083,-500.0,0.0001172,2]
[400148838,1767154475112,-61.46488678,0.0001172,2]
[400148839,1767154475887,-438.53511322,0.0001172,2]
[400148840,1767154476126,-1602.02977356,0.00011721,2]
[400148841,1767154476153,-10000.01,0.00011721,2]
[400148842,1767154478013,-10000.01,0.00011721,2]
[400148843,1767154478162,-10000.01,0.00011721,2]
[400148844,1767154478315,-10000.01,0.00011721,2]
[400148845,1767154478416,-10000.01,0.00011721,2]
[400148846,1767154478565,-10000.01,0.00011721,2]
[400148847,1767154478725,-2607.559408,0.00011721,2]
[400148848,1767154484078,-300.0,0.00011954,2]
[400148849,1767154484112,-300.0,0.00011954,2]
[400148850,1767154484145,-300.0,0.00011954,2]
[400148851,1767154484176,-300.0,0.00011954,2]
[400148852,1767154484206,-300.0,0.00011954,2]
[400148853,1767154484235,-300.0,0.00011954,2]
[400148854,1767154484268,-300.0,0.00011954,2]
[400148855,1767154484299,-300.0,0.00011954,2]
[400148856,1767154484329,-300.0,0.00011954,2]
[400148857,1767154484361,-300.0,0.00011954,2]
[400148858,1767154484392,-300.0,0.00011954,2]
[400148859,1767154484422,-300.0,0.00011954,2]
[400148860,1767154484451,-300.0,0.00011954,2]
[400148861,1767154484479,-300.0,0.00011954,2]
[400148862,1767154484508,-300.0,0.00011954,2]
[400148863,1767154484539,-400.01,0.00011954,2]
[400148864,1767154484808,-199.99,0.00011954,2]
[400148865,1767154490052,500.0,0.0001172,2]
[400148866,1767154490085,500.0,0.0001172,2]
[400148867,1767154490113,500.0,0.0001172,2]
[400148868,1767154490156,500.0,0.0001172,2]
[400148869,1767154490189,500.0,0.0001172,2]
[400148870,1767154490217,500.0,0.0001172,2]
[400148871,1767154490246,500.0,0.0001172,2]
[400148872,1767154490280,500.0,0.0001172,2]
[400148873,1767154490308,500.0,0.0001172,2]
[400148874,1767154490340,377.32155172,0.0001172,2]
[400148875,1767154490372,500.0,0.0001172,2]
[400148876,1767154490421,500.0,0.0001172,2]